Cogmind - Beta 12 *** ADVENTURER MODE // 2023.03.25 @ 18:18:53 Player: MrNIKO Result: Destroyed by D-53 Grenadier with Mini Grenade Launcher Performance ------------- Evolutions (0) 0 Regions Visited (2) 400 Robots Destroyed (23) 115 Value Destroyed (492) 492 Prototype IDs (3) 60 Alien Tech Used (0) 0 Bonus (0) 0 TOTAL SCORE: 1067 Bonus ------- None Cogmind --------- Core Integrity 0/250 Matter 219/300 Energy 89/100 System Corruption 1% Temperature Cool (0) Movement Core (100) Ox1 Location -10/Mines Parts ------- > --- POWER (1) -------- (None) > --- PROPULSION (2) --- (None) > --- UTILITY (2) ------ Large Storage Unit Advanced Weight Redist. System > --- WEAPON (2) ------- Assault Rifle > --- INVENTORY (15) --- Ion Engine Titanium Leg Improved Heat Sink Huge Storage Unit High-capacity Battery (250) Sensor Array Signal Interpreter Terrain Scanner Heavy Armor Plating EM Pulse Cannon Assault Rifle Assault Rifle Assault Cannon Heavy Hammer Peak State ------------ > --- POWER ------------ Ion Engine > --- PROPULSION ------- Carbon-fiber Leg Carbon-fiber Leg > --- UTILITY ---------- Large Storage Unit Advanced Weight Redist. System > --- WEAPON ----------- Assault Rifle Assault Rifle > --- INVENTORY -------- Ion Engine Titanium Leg Improved Heat Sink Huge Storage Unit High-capacity Battery Sensor Array Signal Interpreter Terrain Scanner Heavy Armor Plating EM Pulse Cannon Assault Rifle Light Cannon Assault Cannon Heavy Hammer [Rating: 15] Favorites ----------- Power Ion Engine Engine Ion Engine Propulsion Light Treads Treads Light Treads Leg Carbon-fiber Leg Utility Large Storage Unit Device Advanced Weight Redist. System Storage Large Storage Unit Weapon Assault Rifle Energy Gun Medium Laser Ballistic Gun Assault Rifle Ballistic Cannon Light Cannon Build | -11 -10 -10 ------- Run | Jun Mat Min Slots Evolved . | . . . Power . | . . . Propulsion . | . . . Utility . | . . . Weapon . | . . . Parts Attached 16 | 6 6 4 Power 1 | 1 . . Engine 1 | 1 . . Core . | . . . Reactor . | . . . Propulsion 4 | 2 . 2 Treads 2 | 2 . . Leg 2 | . . 2 Wheel . | . . . Hover . | . . . Flight . | . . . Utility 5 | 1 3 1 Device 1 | . . 1 Storage 4 | 1 3 . Processor . | . . . Hackware . | . . . Protection . | . . . Artifact . | . . . Weapon 6 | 2 3 1 Energy Gun 1 | . 1 . Energy Cannon . | . . . Ballistic Gun 4 | 2 2 . Ballistic Cannon 1 | . . 1 Launcher . | . . . Special Weapon . | . . . Impact Weapon . | . . . Slashing Weapon . | . . . Piercing Weapon . | . . . Special Melee Weapon . | . . . Unidentified Prototypes . | . . . Parts Lost 5 | . . 5 Power 1 | . . 1 Propulsion 3 | . . 3 Utility . | . . . Weapon 1 | . . 1 Highest Loss Streak 4 | . . 4 To Critical Strikes . | . . . Average Slot Usage (%) 82 | . 85 79 Engine 13 | . 14 13 Treads 22 | . 28 13 Leg 2 | . . 6 Storage 14 | . 14 14 Energy Gun 2 | . 3 . Ballistic Gun 25 | . 24 27 Naked Turns . | . . . Heaviest Build 89 | 12 89 29 Greatest Support 40 | 40 40 40 Greatest Overweight (x) 2 | . 2 1 Average Overweight (x) . | . . . Largest Inventory Capacity 25 | 8 25 15 Average Capacity 14 | 6 15 15 Most Carried 15 | 5 7 15 Average Carried 5 | 1 4 8 Final Capacity 15 | 8 15 15 Final Carried 15 | . 7 15 Class Distribution -------------------- 100% | Mutant Dominant Class ---------------- Mutant | -10/Materials Mutant | -10/Mines Resources | -11 -10 -10 ----------- Run | Jun Mat Min Matter Collected 613 | 258 285 70 Remotely . | . . . Salvage Created 703 | . 583 120 Parts 43 | . 40 3 Haulers Intercepted . | . . . Recyclers Shooed . | . . . Parts Field Recycled . | . . . Retrieved Matter . | . . . Parts Self-Destructed . | . . . Prevented . | . . . Kills | -11 -10 -10 ------- Run | Jun Mat Min Combat Hostiles Destroyed 26 | . 16 10 Guns 22 | . 16 6 Cannons 4 | . . 4 Classes Destroyed 5 | . 4 1 Worker 1 | . 1 . Watcher 3 | . 3 . Swarmer 9 | . 6 3 Grunt 10 | . 10 . Assembled 7 | . . 7 Best Kill Streak 7 | . 5 7 Combat Bots Only 7 | . 5 7 Max Kills in Single Turn 1 | . 1 1 Gunslinging . | . . . Exploded . | . . . Melee . | . . . Uniques/NPCs Destroyed . | . . . Combat | -11 -10 -10 -------- Run | Jun Mat Min Damage Taken 1091 | . 447 644 Core 259 | . 100 159 Absorbed by Shields . | . . . Core Remaining (%) 100 | 100 . . Volleys Fired 76 | . 57 19 Largest 2 | . 2 2 Hottest 70 | . 70 55 Shots Fired 153 | . 114 39 Gun 145 | . 114 31 Cannon 8 | . . 8 Launcher . | . . . Special . | . . . Kinetic 132 | . 93 39 Thermal 21 | . 21 . Explosive . | . . . Electromagnetic . | . . . Robot Hit Streak 19 | . 19 9 Robot Miss Streak 3 | . 3 2 Penetration Max . | . . . Secondary Targets 2 | . . 2 Max Gunslinging Chain 1 | . . 1 Shots Hit Robots 108 | . 81 27 Core Hits 49 | . 34 15 Critical Kills 1 | . 1 . Critical Parts Destroyed 1 | . 1 . Critical Strikes 4 | . 4 . Burn 2 | . 2 . Destroy 2 | . 2 . Melee Attacks . | . . . Impact . | . . . Slashing . | . . . Piercing . | . . . Sneak Attacks . | . . . Combat Hostiles . | . . . Follow-up Attacks . | . . . Damage Inflicted 1300 | . 902 398 Guns 1192 | . 902 290 Cannons 108 | . . 108 Explosions . | . . . Melee . | . . . Ramming . | . . . Kinetic 1073 | . 675 398 Thermal 227 | . 227 . Explosive . | . . . Electromagnetic . | . . . Impact . | . . . Slashing . | . . . Piercing . | . . . Highest Corruption 1 | . 1 1 Average Corruption 1 | . 1 1 Corruption Purged . | . . . Corruption Blocked . | . . . Effects 8 | . 3 5 Message Errors 1 | . 1 . Matter Fused 3 | . 1 2 Heat Flow Errors 1 | . . 1 Energy Discharges 1 | . . 1 Data Loss (minor) 1 | . 1 . Misfires 1 | . . 1 Overload Shots . | . . . Overflow Damage . | . . . Projectiles . | . . . Explosions . | . . . Melee . | . . . Knockbacks . | . . . Impact . | . . . Kinetic . | . . . Secondary . | . . . Self-Inflicted Damage . | . . . Shots . | . . . Rammed . | . . . Targets Rammed . | . . . Kicked . | . . . Crushed . | . . . Highest Temperature 141 | . 141 120 Average Temperature 45 | . 47 34 Received Heat Transfer 314 | . 294 20 Siege Activations . | . . . Robots Corrupted . | . . . Combat Hostiles . | . . . Parts Fried . | . . . Impact Corruptions . | . . . Robots Melted . | . . . Combat Hostiles . | . . . Parts Melted 1 | . 1 . Heat Transferred 814 | . 814 . Parts Sabotaged . | . . . Parts Stolen . | . . . Parts Stripped . | . . . Power Chain Reactions . | . . . Missiles Intercepted . | . . . Alert | -11 -10 -10 ------- Run | Jun Mat Min Peak Influence 237 | . 237 67 Initial . | . . . Average 26 | . 37 9 Maximum Alert Level 1 | . 1 . Low Security (%) 99 | 100 98 100 Level 1 . | . 1 . Level 2 . | . . . Level 3 . | . . . Level 4 . | . . . Level 5 . | . . . High Security . | . . . Max Security . | . . . Squads Dispatched 6 | . 4 2 Investigation 6 | . 4 2 Extermination . | . . . Reinforcement . | . . . Assault . | . . . Garrison . | . . . Intercept . | . . . Searches Triggered . | . . . Construction Impeded . | . . . Haulers Reinforced . | . . . Active Scanning Responses . | . . . Cargo Convoy Interrupts . | . . . Stealth | -11 -10 -10 --------- Run | Jun Mat Min Distress Signals . | . . . Communications Jammed . | . . . Distress Signals . | . . . Times Spotted 51 | . 24 27 Peak Tracking Total 18 | . 4 18 Tactical Retreats 4 | . 2 2 Traps | -11 -10 -10 ------- Run | Jun Mat Min Traps Triggered 2 | . 2 . Indirectly . | . . . Trap Hack Attempts . | . . . Triggered . | . . . Disarmed . | . . . Reprogrammed . | . . . Reused . | . . . Traps Extracted . | . . . Installed . | . . . Triggered . | . . . Machines | -11 -10 -10 ---------- Run | Jun Mat Min Machines Disabled . | . . . Max in Single Turn . | . . . Machines Repaired . | . . . Machines Sabotaged . | . . . Overloaded Fab Kills . | . . . Hacking | -11 -10 -10 --------- Run | Jun Mat Min Machines Accessed 12 | . 10 2 Terminals 9 | . 8 1 Fabricators . | . . . Repair Stations . | . . . Recycling Units 2 | . 2 . Scanalyzers . | . . . Garrison Access . | . . . Total Hacks 48 | . 42 6 Successful 33 | . 31 2 Failed 15 | . 11 4 Catastrophic 4 | . 3 1 Database Lockouts . | . . . Manual 27 | . 27 . Terminals 41 | . 36 5 Fabricators . | . . . Repair Stations . | . . . Recycling Units 6 | . 6 . Scanalyzers . | . . . Garrison Access . | . . . Terminal Hacks 21 | . 19 2 Record 10 | . 10 . Prototype ID Bank 2 | . 2 . Open Door 1 | . . 1 Level Access Points 1 | . . 1 Branch Access Points 1 | . 1 . Alert Level 1 | . 1 . Unreport Threat 3 | . 3 . Surveillance Status 1 | . 1 . Assault Status 1 | . 1 . Fabricator Hacks . | . . . Repair Station Hacks . | . . . Recycling Unit Hacks 1 | . 1 . Report Inventory 1 | . 1 . Scanalyzer . | . . . Garrison Access Hacks . | . . . Unauthorized Hacks 11 | . 11 . Terminals 7 | . 7 . Botnet 7 | . 7 . Fabricators . | . . . Repair Stations . | . . . Recycling Units 4 | . 4 . Reject 2 | . 2 . Mask 2 | . 2 . Scanalyzers . | . . . Garrison Access . | . . . Data Cores Recovered . | . . . Used . | . . . Hacking Detections 10 | . 9 1 Full Trace Events 5 | . 4 1 Feedback Events . | . . . Feedback Blocked . | . . . Robot Schematics Acquired . | . . . Robots Built . | . . . Authchips . | . . . Time . | . . . Total Robot Build Rating . | . . . Part Schematics Acquired . | . . . Parts Built . | . . . Authchips . | . . . Time . | . . . Total Part Build Rating . | . . . Parts Repaired . | . . . Time . | . . . Parts Recycled . | . . . Recycled Matter . | . . . Retrieved Matter . | . . . Retrieved Components . | . . . Parts Scanalyzed . | . . . Part Schematics Acquired . | . . . Parts Damaged . | . . . Bothacking | -11 -10 -10 ------------ Run | Jun Mat Min Used RIF Installer . | . . . Robots Hacked . | . . . Non-combat . | . . . Combat . | . . . Robot Hacks Applied . | . . . Relay Couplers Released . | . . . Fabnet Peak Effective % . | . . . Robots Rewired . | . . . Allies Hacked . | . . . Hacks Repelled . | . . . Allies | -11 -10 -10 -------- Run | Jun Mat Min Total Allies . | . . . Largest Group . | . . . Highest-Rated Group . | . . . Highest-Rated Ally . | . . . Total Orders . | . . . Ally Attacks . | . . . Total Damage . | . . . Kills . | . . . Allies Corrupted . | . . . Allies Melted . | . . . Intel | -11 -10 -10 ------- Run | Jun Mat Min Robot Analysis Total . | . . . Derelict Logs Recovered 2 | . . 2 Drone Launches . | . . . Drone Recoveries . | . . . Exploration | -11 -10 -10 ------------- Run | Jun Mat Min Turns Passed 2922 | 43 1782 1097 Spaces Moved 1549 | 30 965 554 Core 14 | 14 . . Treads 1359 | 16 965 378 Legs 176 | . . 176 Wheels . | . . . Hover . | . . . Flight . | . . . Fastest Speed 50 | 50 160 120 Average Speed 167 | 108 161 182 Slowest Speed 320 | 160 320 240 Overloaded Moves . | . . . Propulsion Burnouts . | . . . Robots Hopped . | . . . Cave-ins Triggered . | . . . Exploration Rate (%) 61 | 3 99 81 Regions Visited 2 Branch Regions 1 Pre-discovered Areas . | . . . Known Exits Taken 1 | . 1 . Unknown Exits Taken 1 | 1 . . Scrap Searched 2 | . . 2 Spaces Dug . | . . . Terrain Destroyed . | . . . Melee . | . . . Projectile . | . . . AOE . | . . . Terrain Rammed . | . . . Walls Destroyed . | . . . Machines Disabled . | . . . Actions | -11 -10 -10 --------- Run | Jun Mat Min Total 1724 | 40 1080 604 Wait 53 | . 36 17 Move 1547 | 29 964 554 Hop . | . . . Pick Up 26 | 5 12 9 Fast Attach 2 | 1 . 1 Attach 8 | 5 2 1 Detach . | . . . Swap 6 | . 4 2 Drop 6 | . 5 1 Fire 76 | . 57 19 Melee . | . . . Ram . | . . . Kick . | . . . Crush . | . . . Escape Stasis . | . . . Rewire . | . . . Trap . | . . . Miscellaneous . | . . . Route ------- -11/Junkyard -10/Materials (discovered 4 exits: *Mat x3 / *Min) -10/Mines (discovered 2 exits: *Mat x2) History --------- Turn | Location | Event 9 | -11/Junkyard | Discovered new exit (range 16) 44 | -11/Junkyard | Entered Materials 155 | -10/Materials | Identified exit to Mines 307 | -10/Materials | Build established: Mutant 359 | -10/Materials | Discovered new exit (range 16) 1263 | -10/Materials | Discovered new exit (range 8) 1423 | -10/Materials | Discovered new exit (range 7) 1826 | -10/Materials | Entered Mines 1849 | -10/Mines | Met a Derelict bent on vengeance 2134 | -10/Mines | Identified exit to Materials 2534 | -10/Mines | Met a Derelict shopkeep closing up shop 2879 | -10/Mines | Assembled infested the area 2884 | -10/Mines | Assisted by a Guerilla fighting off Assembled 2897 | -10/Mines | Core integrity fell below 50% 2916 | -10/Mines | Core integrity fell below 20% 2923 | -10/Mines | Destroyed by D-53 Grenadier with Mini Grenade Launcher Last Messages --------------- 02894_ SL-LSY(h) knocked back. 02895_ as-56321 suffers critical hit (Destroy). 02895_ as-56321 destroyed. 02898_ SL-LSY(h) destroyed. 02900_ as-73011 destroyed. 02903_ as-27339 destroyed. 02904_ Knocked back. 02906_ as-39366 destroyed. 02909_ Core Extractor disabled. 02912_ as-90840 destroyed. 02913_ Acquired 2 matter. 02913_ Carbon-fiber Leg destroyed. 02918_ Ion Engine destroyed. 02918_ as-16234 destroyed. 02921_ as-71526 destroyed. 02922_ as-01889 destroyed. 02922_ as-83768 destroyed. 02923_ as-14369 destroyed. 02923_ Carbon-fiber Leg destroyed. 02923_ Lgt. Cannon destroyed. Map ----- +----------------------------------------------------+ | ????????????????????????# ##???????# ### #? | | ????????????????????????# ##???????? #?### #? | | ????????????????????????## ##????????####???# #? | | ?????????????????????????####????????????????# ## | | ?????????????????????????????????????????##### | | ????????????????????????????????????????## | | ???????????????????????????????????????## | | ??????????????????????????????????????## | | ??????????????????????????????????????# | | ?????????????????????????????????????# ### | | ?????????????????????????????????????# ##?## | | ??????????????????????#??????????????## #????## | | ????????????????????### ??????????????###?????## | | ????????????????????# ?????????????????????## | | ????????????????????# d?????????????????????# | | ??????????????????### d ????????????????????## # | | ????????????? ???## #??????????????????## ## | | ????????????? ?? ?????????????????## ##? | | ????????????! % ?# ????????????????## #?? | | ????????????%* a # ????????????##### #?? | | ????????????? % % ##?????????## #?? | | ??????????????? #?????????# ##? | | ??????????????????# a= ?#####???# #? | | ?????????????????## % a! ## ###?## #? | | ????????????????## " ! % ##### #? | | ???????????????# " @ t ####### #? | | ???????????? """a## #????## ## | | ???????????? % #?# ### #?????## # | | ???????????????? ! ##?# ##?# #?????## | | ???????????????# ###???# #??# ####### | | ???????????????# #??????# #??# | | ??????????????? ???????# ##?# | | ???????????????## ????????# ######### | | ????????????????##????????## ##????# | | ?????????????????????????## ####?# ## | | ????????????????????????## #### #### | | ???????????????????????## ### #?## ##??# | | ??????????????????###### ##?## #?####???? | | ?????????????????## ###???## #????????? | | ?????????????????# ##??????## ##????????? | | ?????????????????## ##????????######?????????? | | ??????????????????#######????????????????????????? | | ?????????????????????????????????????????????????? | | ?????????????????????????????????????????????????? | | | | | | | | | | | | | +----------------------------------------------------+ Best States ------------- Heat Dissipation 25 Energy Generation 10 Energy Capacity 250 Matter Stores 300 Matter Capacity 300 Sight Range 16 Terrain Scan Density 10 Additional Mass Support 9 Resistance: KI 20 Resistance: TH 20 Resistance: EX 20 Resistance: EM 20 Resistance: I 20 Resistance: S 20 Resistance: P 20 Evasion (%) 55 Recoil Reduction 2 Offensive Hacking 10 Item Schematics ----------------- None Robot Schematics ------------------ None Fabricated ------------ Nothing Alien Tech Used ----------------- None Achievements -------------- None Challenges ------------ None Game ------ Seed SalvageCentriumArray Manual? 0 Play Time 00:16:27 Cumulative 4.1 hours Start 2023.03.25 @ 18:03:34 End 2023.03.25 @ 18:18:53 Sessions 1 Manual Loads 0 Difficulty Adventurer Special Mode None Game No. 7 Rogue 5 Adventurer 2 Explorer 0 Win Type - Total 0 Types 0/0/0/0/0/0/0/0/0 Lore% 6 Gallery% 10 Achievement% 18 Wizard Run 0 Options --------- ASCII 0 Keyboard 0 Movement Mouse Keybinds 0 Fullscreen 1 Font 18/SmallcapsGlow Map View 76x50 Tactical HUD 1 Map Filters NONE Filters NONE Steam 1 RUN: 5c8a2a86-413f-4729-8594-0c8d7a51118a